fUST/lending_fUST_20251003
["ID","MTS","AMOUNT","RATE_DAILY","PERIOD"]
[388859979,1759432242409,-1000.0,0.00018978,2]
[388860005,1759432243260,-283.17719691,0.00018978,2]
[388860306,1759432246500,-2355.1919997,0.00018978,2]
[388860572,1759433130054,5273.9458989,0.00017811,2]
[388860584,1759433325215,1036.43,0.00017796,2]
[388860722,1759433435682,-1000.0,0.00018699,2]
[388860723,1759433435691,-174.34321386,0.000187,2]
[388860724,1759433435700,-689.92,0.0001879,3]
[388860725,1759433435710,-1200.0,0.00018796,2]
[388860726,1759433435719,-300.0,0.00018797,2]
[388860727,1759433435733,-300.0,0.00018797,2]
[388860728,1759433435742,-300.0,0.00018797,2]
[388860729,1759433435752,-300.0,0.00018797,2]
[388860730,1759433435761,-300.0,0.00018797,2]
[388860731,1759433435774,-242.0,0.00018798,2]
[388860732,1759433435784,-8642.92899601,0.00018798,2]
[388860757,1759433438278,-11002.95971692,0.00018798,2]
[388860758,1759433438290,-18430.81,0.00018798,2]
[388860759,1759433438332,-736.12090922,0.00018798,2]
[388860773,1759433440538,-3131.92337249,0.00018798,2]
[388860901,1759433444657,-8055.25700536,0.00018798,2]
[388860902,1759433444667,-182.3263561,0.00018799,2]
[388860903,1759433444676,-340.57478427,0.00018799,2]
[388860904,1759433444685,-388.43260399,0.00018799,2]
[388860905,1759433444694,-584.40512204,0.00018799,2]
[388860906,1759433444703,-500.0,0.00018799,2]
[388860907,1759433444712,-500.0,0.00018799,2]
[388860908,1759433444722,-500.0,0.00018799,2]
[388860909,1759433444732,-195.97303089,0.00018799,2]
[388860910,1759433444741,-500.0,0.00018799,2]
[388860911,1759433444750,-418.106366,0.00018799,2]
[388860912,1759433444759,-571.11751326,0.00018799,2]
[388860913,1759433444769,-141524.54413249,0.000188,2]
[388860914,1759433444782,-3294.160866,0.00018867,2]
[388860915,1759433444791,-500.0,0.00018873,2]
[388860916,1759433444800,-500.0,0.00018873,2]
[388860917,1759433444810,-500.0,0.00018873,2]
[388860918,1759433444819,-500.0,0.00018873,2]
[388860919,1759433444828,-463.64877737,0.00018873,2]
[388860920,1759433444837,-500.0,0.00018873,2]
[388860921,1759433444848,-500.0,0.00018873,2]
[388860922,1759433444858,-500.0,0.00018873,2]
[388860923,1759433444867,-500.0,0.00018873,2]
[388860924,1759433444876,-500.0,0.00018873,2]
[388860925,1759433444886,-500.0,0.00018873,2]
[388860926,1759433444895,-500.0,0.00018873,2]
[388860927,1759433444904,-500.0,0.00018873,2]
[388860928,1759433444914,-500.0,0.00018873,2]
[388860929,1759433444924,-500.0,0.00018873,2]
[388860930,1759433444933,-500.0,0.00018873,2]
[388860931,1759433444942,-268.47350391,0.00018873,2]
[388860932,1759433444952,-191670.8128761,0.00018877,2]
[388860944,1759433516645,212.0509792,0.00017917,2]
[388860956,1759433584056,500.0,0.00018,2]
[388860957,1759433710389,627.622982,0.00017874,2]
[388860959,1759433772969,183.584249,0.00017869,2]
[388860977,1759434225189,1500.0,0.00016438,2]
[388860982,1759434288117,229.07,0.00021954,120]
[388861038,1759434632631,-1200.0,0.00018674,2]
[388861039,1759434632640,-387.27788813,0.00018675,2]
[388861041,1759434632652,-300.0,0.00018675,2]
[388861043,1759434632661,-300.0,0.00018675,2]
[388861045,1759434632671,-300.0,0.00018675,2]
[388861047,1759434632681,-300.0,0.00018675,2]
[388861049,1759434632691,-300.0,0.00018675,2]
[388861051,1759434632700,-1000.0,0.00018675,2]
[388861052,1759434632709,-546.36912162,0.00018699,2]
[388861053,1759434632721,-1540.5576896,0.00018699,2]
[388861054,1759434632731,-245.36391624,0.00018699,2]
[388861055,1759434632741,-344.96,0.00018767,3]
[388861057,1759434632751,-500.0,0.00018773,2]
[388861059,1759434632760,-500.0,0.00018773,2]
[388861062,1759434632771,-500.0,0.00018773,2]
[388861064,1759434632780,-500.0,0.00018773,2]
[388861066,1759434632791,-500.0,0.00018773,2]
[388861068,1759434632800,-205.11839416,0.00018773,2]
[388861118,1759434638456,-294.88160584,0.00018773,2]
[388861121,1759434638466,-500.0,0.00018773,2]
[388861123,1759434638477,-500.0,0.00018773,2]
[388861125,1759434638486,-44.9522284,0.00018773,2]
[388861184,1759434643231,-455.0477716,0.00018773,2]
[388861186,1759434643242,-500.0,0.00018773,2]
[388861188,1759434643252,-326.81381377,0.00018776,2]
[388861190,1759434643261,-400.48320122,0.00018776,2]
[388861192,1759434643271,-174.56861258,0.00018776,2]
[388861194,1759434643280,-31774.27254907,0.00018777,2]
[388861212,1759434646311,2952.01135692,0.00018179,5]
[388861253,1759434646752,-307.96,0.00018677,2]
[388862092,1759434758846,8645.33517139,0.0002876,120]
[388862096,1759434885419,4378.85525017,0.000183,2]
[388862120,1759434894488,1767.22,0.00028767,120]
[388862141,1759435333199,250.0,0.00018295,2]
[388862143,1759435382845,368.30824745,0.00018028,2]
[388862144,1759435384925,1471.75975683,0.00018028,2]
[388862148,1759435547357,422.41218589,0.00018028,2]
[388862163,1759435750126,-816.44099471,0.00018474,2]
[388862164,1759435750166,-708.25884307,0.00018475,2]
[388862165,1759435755092,-491.74115693,0.00018475,2]
[388862166,1759435755113,-300.0,0.00018475,2]
[388862167,1759435755341,-500.0,0.00018476,2]
[388862168,1759435755362,-1149.41249675,0.00018476,2]
[388862194,1759435832712,-300.0,0.00018475,2]
[388862196,1759435832722,-300.0,0.00018475,2]
[388862198,1759435832731,-300.0,0.00018475,2]
[388862200,1759435832741,-1200.0,0.00018475,2]
[388862202,1759435832750,-50000.0,0.00018476,2]
[388862204,1759435832760,-500.0,0.00018476,2]
[388862206,1759435832770,-500.0,0.00018476,2]
[388862208,1759435832779,-500.0,0.00018476,2]
[388862210,1759435832789,-500.0,0.00018476,2]
[388862212,1759435832798,-500.0,0.00018476,2]
[388862214,1759435832809,-500.0,0.00018476,2]
[388862216,1759435832819,-500.0,0.00018476,2]
[388862218,1759435832829,-208.35711196,0.00018476,2]
[388862220,1759435832838,-500.0,0.00018476,2]
[388862222,1759435832847,-500.0,0.00018476,2]
[388862225,1759435832857,-500.0,0.00018476,2]
[388862228,1759435832868,-500.0,0.00018476,2]
[388862230,1759435832877,-500.0,0.00018476,2]
[388862233,1759435832886,-500.0,0.00018476,2]
[388862236,1759435832896,-500.0,0.00018476,2]
[388862239,1759435832906,-500.0,0.00018476,2]
[388862242,1759435832915,-500.0,0.00018476,2]
[388862245,1759435832924,-500.0,0.00018476,2]
[388862247,1759435832934,-500.0,0.00018476,2]
[388862249,1759435832943,-500.0,0.00018476,2]
[388862251,1759435832952,-500.0,0.00018476,2]
[388862253,1759435832963,-500.0,0.00018476,2]
[388862255,1759435832972,-500.0,0.00018476,2]
[388862257,1759435832982,-500.0,0.00018476,2]
[388862259,1759435832991,-500.0,0.00018476,2]
[388862261,1759435833001,-188.04013925,0.00018476,2]
[388862263,1759435833011,-500.0,0.00018476,2]
[388862265,1759435833020,-500.0,0.00018476,2]
[388862267,1759435833029,-500.0,0.00018476,2]
[388862269,1759435833038,-500.0,0.00018476,2]
[388862271,1759435833048,-500.0,0.00018476,2]
[388862273,1759435833058,-165.58842669,0.00018476,2]
[388862275,1759435833068,-500.0,0.00018476,2]
[388862277,1759435833077,-500.0,0.00018476,2]
[388862279,1759435833087,-500.0,0.00018476,2]
[388862281,1759435833096,-500.0,0.00018476,2]
[388862283,1759435833105,-500.0,0.00018476,2]
[388862285,1759435833115,-500.0,0.00018476,2]
[388862287,1759435833125,-500.0,0.00018476,2]
[388862289,1759435833135,-500.0,0.00018476,2]
[388862291,1759435833145,-500.0,0.00018476,2]
[388862293,1759435833154,-500.0,0.00018476,2]
[388862295,1759435833163,-500.0,0.00018476,2]
[388862297,1759435833173,-500.0,0.00018476,2]
[388862299,1759435833182,-500.0,0.00018476,2]
[388862301,1759435833191,-500.0,0.00018476,2]
[388862303,1759435833201,-500.0,0.00018476,2]
[388862305,1759435833211,-500.0,0.00018476,2]
[388862307,1759435833220,-499.99999999,0.00018476,2]
[388862309,1759435833229,-500.0,0.00018476,2]
[388862311,1759435833239,-205.49,0.00018476,2]
[388862313,1759435833249,-290.4584161,0.00018489,2]
[388862315,1759435833258,-414.27319138,0.00018489,2]
[388862316,1759435833268,-1000.0,0.00018489,2]
[388862319,1759435833278,-251.87,0.000185,2]
[388862320,1759435833287,-1000.0,0.000185,2]
[388862322,1759435833297,-19517.47272675,0.000185,2]
[388862325,1759435833309,-11135.88994634,0.000185,2]
[388862331,1759435833674,-63593.68008191,0.000185,2]
[388862332,1759435833684,-151.0,0.000185,2]
[388862333,1759435833694,-421.47,0.00018562,3]
[388862334,1759435833703,-210.73,0.00018562,3]
[388862335,1759435833712,-632.23,0.00018562,3]
[388862336,1759435833722,-842.94,0.00018565,3]
[388862337,1759435833731,-151.0,0.00018572,2]
[388862338,1759435833741,-151.0,0.00018572,2]
[388862339,1759435833750,-151.0,0.00018572,2]
[388862340,1759435833759,-500.0,0.00018573,2]
[388862341,1759435833769,-500.0,0.00018573,2]
[388862342,1759435833779,-500.0,0.00018573,2]
[388862343,1759435833788,-500.0,0.00018573,2]
[388862344,1759435833798,-500.0,0.00018573,2]
[388862345,1759435833807,-502.27852549,0.00018573,2]
[388862346,1759435833817,-500.0,0.00018573,2]
[388862347,1759435833827,-500.0,0.00018573,2]
[388862348,1759435833836,-641.65746305,0.00018573,2]
[388862349,1759435833847,-500.0,0.00018573,2]
[388862350,1759435833857,-500.0,0.00018573,2]
[388862351,1759435833867,-500.0,0.00018573,2]
[388862352,1759435833877,-500.0,0.00018573,2]
[388862353,1759435833886,-500.0,0.00018573,2]
[388862354,1759435833897,-500.0,0.00018573,2]
[388862355,1759435833906,-500.0,0.00018574,2]
[388862356,1759435833916,-1198.0,0.00018574,2]
[388862357,1759435833925,-151.0,0.00018574,2]
[388862358,1759435833935,-500.0,0.00018574,2]
[388862359,1759435833944,-151.0,0.00018574,2]
[388862360,1759435833953,-500.0,0.00018574,2]
[388862361,1759435833963,-151.0,0.00018574,2]
[388862362,1759435833972,-151.0,0.00018574,2]
[388862363,1759435833981,-151.0,0.00018574,2]
[388862364,1759435833991,-151.0,0.00018574,2]
[388862365,1759435834000,-151.0,0.00018574,2]
[388862366,1759435834010,-151.0,0.00018575,2]
[388862367,1759435834020,-151.0,0.00018575,2]
[388862368,1759435834029,-151.0,0.00018575,2]
[388862369,1759435834045,-151.0,0.00018575,2]
[388862370,1759435834055,-151.0,0.00018575,2]
[388862371,1759435834065,-208177.35568031,0.00018575,2]
[388862392,1759435838540,-573.78651555,0.00018376,2]
[388862394,1759435838550,-192.79639938,0.00018499,2]
[388862396,1759435838560,-80.78256684,0.00018499,2]
[388862400,1759435838591,-209.87512814,0.00018499,2]
[388862402,1759435838600,-151.0,0.00018575,2]
[388862404,1759435838610,-245.29894196,0.00018575,2]
[388862409,1759435838645,-1292.12846853,0.00018575,2]
[388862411,1759435838658,-1728.4360983,0.00018575,2]
[388862413,1759435838669,-2122.70390868,0.00018575,2]
[388862495,1759435842087,-6482.45096306,0.00018575,2]
[388862498,1759435843794,-743.49184814,0.00018575,2]
[388862499,1759435843806,-375.84981648,0.00018575,2]
[388862500,1759435843817,-39398.31490476,0.00018575,2]
[388862730,1759435846891,-153.630834,0.000185,2]
[388862732,1759435846901,-7732.59427994,0.00018575,2]
[388862922,1759435848692,562.4944721,0.00018028,2]
[388863091,1759435850558,2249.97788838,0.00018028,2]
[388863294,1759435852611,5062.45024886,0.00018028,2]
[388863548,1759435935623,10000.01,0.00017594,2]
[388863549,1759435935645,4354.7615972,0.00017594,2]
[388863550,1759435983889,4100.88,0.00026,60]
[388863552,1759435993798,4100.88,0.00028767,120]
[388863553,1759436003532,6151.32,0.00028767,120]
[388863554,1759436006063,170.79872179,0.000183,2]
[388863555,1759436013831,170.79872179,0.000183,2]
[388863556,1759436020185,2050.0,0.00025,30]
[388863557,1759436022868,5000.0,0.000183,2]
[388863560,1759436177035,-262.14,0.000183,2]
[388863561,1759436405122,303.65095922,0.00018299,2]
[388863562,1759436405146,896.34904078,0.00018299,2]
[388863565,1759436559243,175.581082,0.00017539,2]
[388863566,1759436567840,873.32561827,0.000183,2]
[388863568,1759436706231,1200.0,0.00018299,2]
[388863637,1759437005201,905.0,0.00018299,2]
[388863681,1759437035384,-37.86,0.000183,2]
[388863683,1759437035395,-300.0,0.000183,2]
[388863685,1759437035404,-300.0,0.000183,2]
[388863687,1759437035414,-43.15285871,0.000183,2]
[388863691,1759437035441,-256.84714129,0.000183,2]
[388863693,1759437035451,-1000.0,0.000183,2]
[388863695,1759437035461,-300.0,0.0001847,2]
[388863697,1759437035470,-300.0,0.00018471,2]
[388863698,1759437035480,-300.0,0.00018471,2]
[388863701,1759437035489,-300.0,0.00018471,2]
[388863702,1759437035499,-592.11485077,0.00018474,2]
[388863705,1759437035509,-217.84381208,0.00018475,2]
[388863706,1759437035518,-500.0,0.00018573,2]
[388863709,1759437035527,-500.0,0.00018573,2]
[388863710,1759437035537,-464.71334271,0.00018573,2]
[388863713,1759437035547,-163.1959943,0.00018573,2]
[388863715,1759437035557,-500.0,0.00018573,2]
[388863717,1759437035567,-500.0,0.00018573,2]
[388863718,1759437035576,-500.0,0.00018573,2]
[388863719,1759437035586,-500.0,0.00018573,2]
[388863721,1759437035595,-500.0,0.00018573,2]
[388863723,1759437035605,-500.0,0.00018573,2]
[388863725,1759437035615,-500.0,0.00018573,2]
[388863726,1759437035625,-576.44890436,0.00018573,2]
[388863728,1759437035635,-300.928568,0.00018573,2]
[388863730,1759437035646,-500.0,0.00018573,2]
[388863732,1759437035656,-500.0,0.00018573,2]
[388863734,1759437035672,-566.55884267,0.00018573,2]
[388863735,1759437035682,-597.9411518,0.00018574,2]
[388863737,1759437035692,-17928.62931418,0.00018574,2]
[388863739,1759437035704,-1000.26073321,0.00018574,2]
[388863741,1759437035716,-26517.89064341,0.00018574,2]
[388863742,1759437035726,-7685.123626,0.00018574,2]
[388863744,1759437035740,-5822.7894196,0.00018574,2]
[388863745,1759437035759,-3123.9518821,0.00018574,2]
[388863747,1759437035768,-203.46038648,0.00018599,2]
[388863748,1759437035778,-6646.89669441,0.000186,2]
[388863767,1759437037787,-4342.956325,0.000186,2]
[388863768,1759437037845,-63697.37418863,0.000186,2]
[388863769,1759437037903,-14806.94913258,0.000186,2]
[388863772,1759437039837,-7779.50484763,0.000186,2]
[388863773,1759437039848,-1587.3660309,0.000186,2]
[388863774,1759437039930,-1700.0,0.000186,2]
[388863775,1759437039941,-357.46,0.000186,2]
[388863776,1759437039952,-4037.49000001,0.000186,2]
[388863777,1759437039962,-3371.39293177,0.000186,2]
[388863784,1759437042945,-31.11632322,0.000186,2]
[388863785,1759437043035,-261641.49352585,0.000186,2]
[388863786,1759437043045,-567.0,0.0001865,2]
[388863787,1759437043055,-1000.0,0.000187,2]
[388863788,1759437043064,-6191.089602,0.00018799,2]
[388863789,1759437043074,-1667.4785221,0.00018854,2]
[388863790,1759437043084,-151.0,0.00018875,2]
[388863791,1759437043094,-151.0,0.00018875,2]
[388863792,1759437043104,-198.7513023,0.00018875,2]
[388863793,1759437043113,-500.0,0.00018875,2]
[388863794,1759437043123,-258.2263473,0.00018875,2]
[388863795,1759437043133,-198.0,0.00018875,2]
[388863796,1759437043142,-151.0,0.00018875,2]
[388863797,1759437043151,-198.72650697,0.00018875,2]
[388863798,1759437043161,-151.0,0.00018875,2]
[388863799,1759437043170,-500.0,0.00018875,2]
[388863800,1759437043181,-151.0,0.00018875,2]
[388863801,1759437043190,-151.0,0.00018875,2]
[388863802,1759437043200,-151.0,0.00018875,2]
[388863803,1759437043210,-151.0,0.00018875,2]
[388863804,1759437043220,-151.0,0.00018875,2]
[388863805,1759437043230,-313.0,0.00018903,2]
[388863806,1759437043240,-653.15279576,0.00018978,2]
[388863807,1759437043250,-1503.37349669,0.0001899,2]
[388863808,1759437043260,-565.0,0.00019043,2]
[388863809,1759437043269,-500.0,0.00019043,2]
[388863810,1759437043279,-151.0,0.00019043,2]
[388863811,1759437043289,-491.71,0.00019068,3]
[388863812,1759437043299,-245.85,0.00019068,3]
[388863813,1759437043309,-737.6,0.00019068,3]
[388863814,1759437043318,-653.15279576,0.00019072,2]
[388863815,1759437043328,-151.0,0.00019077,2]
[388863816,1759437043338,-1148.0,0.00019077,2]
[388863817,1759437043347,-151.0,0.00019077,2]
[388863818,1759437043358,-62831.36183666,0.00019078,2]
[388863819,1759437043367,-267.279532,0.00019078,2]
[388863820,1759437043377,-171.778809,0.00019078,2]
[388863821,1759437043387,-613.70437449,0.00019078,2]
[388863822,1759437043396,-280.2,0.000191,2]
[388863823,1759437043406,-1000.0,0.000191,2]
[388863824,1759437043417,-1000.0,0.00019121,2]
[388863825,1759437043426,-1113.83341633,0.00019121,2]
[388863826,1759437043436,-1000.0,0.00019121,2]
[388863827,1759437043446,-500.0,0.00019121,2]
[388863828,1759437043455,-1000.0,0.00019121,2]
[388863829,1759437043465,-1000.0,0.00019121,2]
[388863830,1759437043475,-1000.0,0.00019121,2]
[388863831,1759437043485,-565.0,0.00019142,2]
[388863832,1759437043495,-151.0,0.00019149,2]
[388863833,1759437043504,-151.0,0.00019149,2]
[388863834,1759437043514,-504.75216283,0.00019149,2]
[388863835,1759437043524,-151.0,0.00019149,2]
[388863836,1759437043534,-151.0,0.00019149,2]
[388863837,1759437043544,-500.0,0.00019149,2]
[388863838,1759437043554,-151.0,0.00019149,2]
[388863839,1759437043563,-151.0,0.00019149,2]
[388863840,1759437043573,-151.0,0.00019149,2]
[388863841,1759437043583,-151.0,0.00019149,2]
[388863842,1759437043592,-653.15279576,0.00019165,2]
[388863843,1759437043602,-357210.79017956,0.00019165,2]
[388863844,1759437043612,-28741.93618354,0.00019172,2]
[388863845,1759437043622,-500.0,0.00019173,2]
[388863846,1759437043632,-500.0,0.00019173,2]
[388863847,1759437043641,-500.0,0.00019173,2]
[388863848,1759437043651,-500.0,0.00019173,2]
[388863849,1759437043661,-500.0,0.00019173,2]
[388863850,1759437043671,-500.0,0.00019173,2]
[388863851,1759437043681,-500.0,0.00019173,2]
[388863852,1759437043691,-500.0,0.00019173,2]
[388863853,1759437043701,-500.0,0.00019173,2]
[388863854,1759437043711,-580.67672975,0.00019173,2]
[388863855,1759437043720,-500.0,0.00019173,2]
[388863856,1759437043730,-500.0,0.00019173,2]
[388863857,1759437043740,-504.77341385,0.00019173,2]
[388863858,1759437043753,-500.23690623,0.00019173,2]
[388863859,1759437043762,-500.0,0.00019173,2]
[388863860,1759437043773,-500.0,0.00019173,2]
[388863861,1759437043783,-500.0,0.00019173,2]
[388863862,1759437043792,-502.18387094,0.00019173,2]
[388863863,1759437043802,-500.0,0.00019173,2]
[388863864,1759437043811,-500.0,0.00019173,2]
[388863865,1759437043821,-501.31676744,0.00019173,2]
[388863866,1759437043831,-500.0,0.00019173,2]
[388863867,1759437043840,-500.0,0.00019173,2]
[388863868,1759437043849,-501.97506607,0.00019173,2]
[388863869,1759437043859,-159.93683256,0.00019173,2]
[388863870,1759437043868,-500.0,0.00019173,2]
[388863871,1759437043878,-500.0,0.00019173,2]
[388863872,1759437043888,-207.836,0.00019173,2]
[388863873,1759437043897,-500.0,0.00019173,2]
[388863874,1759437043907,-500.0,0.00019173,2]
[388863875,1759437043916,-500.2152498,0.00019173,2]
[388863876,1759437043925,-500.0,0.00019173,2]
[388863877,1759437043935,-500.0,0.00019173,2]
[388863878,1759437043944,-501.75664068,0.00019173,2]
[388863879,1759437043954,-526.65465873,0.00019173,2]
[388863880,1759437043963,-500.0,0.00019173,2]
[388863881,1759437043972,-501.02094094,0.00019173,2]
[388863882,1759437043981,-500.88449525,0.00019173,2]
[388863883,1759437043992,-500.0,0.00019173,2]
[388863884,1759437044002,-161.41110707,0.00019173,2]
[388863885,1759437044011,-500.0,0.00019173,2]
[388863886,1759437044020,-500.0,0.00019173,2]
[388863887,1759437044030,-500.0,0.00019173,2]
[388863888,1759437044040,-500.0,0.00019173,2]
[388863889,1759437044049,-500.0,0.00019173,2]
[388863890,1759437044059,-500.0,0.00019173,2]
[388863891,1759437044070,-500.0,0.00019178,2]
[388863892,1759437044079,-445.45103118,0.00019178,2]
[388863893,1759437044089,-500.0,0.00019178,2]
[388863894,1759437044140,-500.0,0.00019178,2]
[388863895,1759437044150,-500.0,0.00019178,2]
[388863896,1759437044159,-485.03303993,0.00019178,2]
[388863897,1759437044168,-500.0,0.00019178,2]
[388863898,1759437044178,-500.0,0.00019178,2]
[388863899,1759437044188,-500.0,0.00019178,2]
[388863900,1759437044198,-500.0,0.00019178,2]
[388863901,1759437044207,-500.0,0.00019178,2]
[388863902,1759437044216,-346.29957475,0.00019178,2]
[388863903,1759437044226,-153.88923977,0.00019178,2]
[388863904,1759437044235,-500.0,0.00019178,2]
[388863905,1759437044245,-500.0,0.00019178,2]
[388863906,1759437044254,-500.0,0.00019178,2]
[388863907,1759437044263,-500.0,0.00019178,2]
[388863908,1759437044273,-500.0,0.00019178,2]
[388863909,1759437044283,-500.0,0.00019178,2]
[388863910,1759437044294,-500.0,0.00019178,2]
[388863911,1759437044304,-500.0,0.00019178,2]
[388863912,1759437044314,-500.0,0.00019178,2]
[388863913,1759437044325,-500.0,0.00019178,2]
[388863914,1759437044333,-500.0,0.00019178,2]
[388863915,1759437044341,-785.78,0.00019178,2]
[388863916,1759437044350,-448.15666112,0.00019178,2]
[388863917,1759437044359,-500.0,0.00019178,2]
[388863918,1759437044368,-500.0,0.00019178,2]
[388863919,1759437044377,-500.0,0.00019178,2]
[388863920,1759437044386,-500.0,0.00019178,2]
[388863921,1759437044396,-275.77603804,0.00019178,2]
[388863922,1759437044405,-500.0,0.00019178,2]
[388863923,1759437044414,-501.03833211,0.00019178,2]
[388863924,1759437044424,-500.0,0.00019178,2]
[388863925,1759437044434,-500.0,0.00019178,2]
[388863926,1759437044443,-288.54525881,0.00019178,2]
[388863927,1759437044453,-500.0,0.00019178,2]
[388863928,1759437044462,-401.35577693,0.00019178,2]
[388863929,1759437044472,-500.0,0.00019178,2]
[388863930,1759437044481,-500.0,0.00019178,2]
[388863931,1759437044490,-500.0,0.00019178,2]
[388863932,1759437044502,-500.0,0.00019178,2]
[388863933,1759437044511,-500.0,0.00019178,2]
[388863934,1759437044520,-330.46871181,0.00019178,2]
[388863935,1759437044530,-500.0,0.00019178,2]
[388863936,1759437044539,-500.0,0.00019178,2]
[388863937,1759437044548,-500.0,0.00019178,2]
[388863938,1759437044558,-350.63145715,0.00019178,2]
[388863939,1759437044567,-500.0,0.00019178,2]
[388863940,1759437044576,-500.0,0.00019178,2]
[388863941,1759437044585,-500.0,0.00019178,2]
[388863942,1759437044595,-500.0,0.00019178,2]
[388863943,1759437044607,-500.0,0.00019178,2]
[388863944,1759437044617,-470.95687205,0.00019178,2]
[388863945,1759437044628,-500.0,0.00019178,2]
[388863946,1759437044638,-500.0,0.00019178,2]
[388863947,1759437044649,-500.0,0.00019178,2]
[388863948,1759437044659,-500.0,0.00019178,2]
[388863949,1759437044668,-500.0,0.00019178,2]
[388863950,1759437044679,-500.0,0.00019178,2]
[388863951,1759437044688,-500.0,0.00019178,2]
[388863952,1759437044698,-500.0,0.00019178,2]
[388863953,1759437044707,-500.0,0.00019178,2]
[388863954,1759437044717,-705.99,0.00019178,2]
[388863955,1759437044727,-232.28018186,0.00019178,2]
[388863956,1759437044737,-500.0,0.00019178,2]
[388863957,1759437044754,-500.0,0.00019178,2]
[388863958,1759437044764,-500.0,0.00019178,2]
[388863959,1759437044774,-500.0,0.00019178,2]
[388863960,1759437044785,-500.0,0.00019178,2]
[388863961,1759437044794,-500.0,0.00019178,2]
[388863962,1759437044804,-500.0,0.00019178,2]
[388863963,1759437044814,-500.0,0.00019178,2]
[388863964,1759437044823,-500.0,0.00019178,2]
[388863965,1759437044832,-465.76185897,0.00019178,2]
[388863966,1759437044841,-786.81,0.00019178,2]
[388863967,1759437044851,-500.0,0.00019178,2]
[388863968,1759437044860,-500.0,0.00019178,2]
[388863969,1759437044870,-500.0,0.00019178,2]
[388863970,1759437044879,-500.0,0.00019178,2]
[388863971,1759437044888,-563.1722315,0.00019178,2]
[388863972,1759437044898,-500.0,0.00019178,2]
[388863973,1759437044907,-500.0,0.00019178,2]
[388863974,1759437044916,-500.0,0.00019178,2]
[388863975,1759437044925,-500.0,0.00019178,2]
[388863976,1759437044935,-500.0,0.00019178,2]
[388863977,1759437044944,-500.0,0.00019178,2]
[388863978,1759437044954,-500.0,0.00019178,2]
[388863979,1759437044964,-500.0,0.00019178,2]
[388863980,1759437044973,-500.0,0.00019178,2]
[388863981,1759437044985,-500.0,0.00019178,2]
[388863982,1759437044993,-500.0,0.00019178,2]
[388863983,1759437045002,-500.0,0.00019178,2]
[388863984,1759437045012,-614.55,0.00019178,2]
[388863985,1759437045021,-998.02,0.00019178,2]
[388863986,1759437045030,-618.61,0.00019178,2]
[388863987,1759437045040,-1143.86,0.00019178,2]
[388863988,1759437045049,-500.0,0.00019178,2]
[388863989,1759437045058,-520.0,0.00019178,3]
[388863990,1759437045067,-500.0,0.00019178,2]
[388863991,1759437045077,-500.0,0.00019178,2]
[388863992,1759437045086,-500.0,0.00019178,2]
[388863993,1759437045096,-500.0,0.00019178,2]
[388863994,1759437045105,-500.0,0.00019178,2]
[388863995,1759437045114,-500.0,0.00019178,2]
[388863996,1759437045123,-429.80287178,0.00019178,2]
[388863997,1759437045133,-500.0,0.00019178,2]
[388863998,1759437045141,-212.36244485,0.00019178,2]